[Event "*** Titled Tuesday Blitz"]
[Site "Chess.com"]
[Date "2020.05.05"]
[Round "6"]
[White "NemtsevIgor"]
[Black "Colombiano07"]
[Result "0-1"]
[WhiteElo "2309"]
[BlackElo "2170"]
[TimeControl "180+1"]
[EndTime "11:07:15 PDT"]
[Termination "Colombiano07 won by resignation"]

1. d4 {[%clk 0:03:00.9]} 1... d5 {[%clk 0:02:57.9]} 2. Bf4 {[%clk 0:02:59.7]}
2... Nf6 {[%clk 0:02:57.2]} 3. e3 {[%clk 0:02:59.8]} 3... e6 {[%clk 0:02:57.6]}
4. Nf3 {[%clk 0:02:59.8]} 4... Bd6 {[%clk 0:02:57.4]} 5. Bg3 {[%clk 0:03:00]}
5... O-O {[%clk 0:02:57.4]} 6. Nbd2 {[%clk 0:02:59.4]} 6... c5 {[%clk
0:02:57.1]} 7. c3 {[%clk 0:02:59.2]} 7... Nc6 {[%clk 0:02:57.1]} 8. Bd3 {[%clk
0:02:58.9]} 8... b6 {[%clk 0:02:57.6]} 9. Ne5 {[%clk 0:02:58.9]} 9... Bb7 {[%clk
0:02:57.7]} 10. f4 {[%clk 0:02:57.8]} 10... Ne7 {[%clk 0:02:57.7]} 11. Bh4
{[%clk 0:02:55.3]} 11... Nf5 {[%clk 0:02:57.4]} 12. Bxf5 {[%clk 0:02:30.6]}
12... exf5 {[%clk 0:02:51.2]} 13. Bxf6 {[%clk 0:02:30.6]} 13... Qxf6 {[%clk
0:01:30.9]} 14. Nd7 {[%clk 0:02:29.3]} 14... Qe7 {[%clk 0:01:28.5]} 15. Nxf8
{[%clk 0:02:29.2]} 15... cxd4 {[%clk 0:01:26.2]} 16. cxd4 {[%clk 0:02:19.8]}
16... Qxe3+ {[%clk 0:01:22.2]} 17. Qe2 {[%clk 0:02:19.9]} 17... Qxd4 {[%clk
0:01:22.5]} 18. Nd7 {[%clk 0:02:07.9]} 18... Qxf4 {[%clk 0:01:15.5]} 19. O-O-O
{[%clk 0:01:51.9]} 19... Qa4 {[%clk 0:00:49.4]} 20. Nf6+ {[%clk 0:01:26]} 20...
gxf6 {[%clk 0:00:50.3]} 21. Kb1 {[%clk 0:01:25.9]} 21... Be5 {[%clk 0:00:47.6]}
22. Nf3 {[%clk 0:01:19.6]} 22... Qe4+ {[%clk 0:00:45]} 23. Qc2 {[%clk
0:01:16.7]} 23... Rc8 {[%clk 0:00:42.9]} 24. Qd3 {[%clk 0:01:14.1]} 24... Ba6
{[%clk 0:00:29.6]} 25. Qxe4 {[%clk 0:01:04]} 25... dxe4 {[%clk 0:00:30.5]} 26.
Nxe5 {[%clk 0:00:58.8]} 26... fxe5 {[%clk 0:00:29.5]} 27. Rc1 {[%clk 0:00:49.7]}
27... Bd3+ {[%clk 0:00:28.6]} 28. Ka1 {[%clk 0:00:49.4]} 28... Rxc1+ {[%clk
0:00:24.1]} 29. Rxc1 {[%clk 0:00:48.6]} 29... f4 {[%clk 0:00:25]} 30. b3 {[%clk
0:00:41.9]} 30... f3 {[%clk 0:00:15.4]} 31. gxf3 {[%clk 0:00:39.8]} 31... exf3
{[%clk 0:00:16.3]} 32. Rg1+ {[%clk 0:00:37.1]} 32... Kf8 {[%clk 0:00:16.2]} 33.
Rg3 {[%clk 0:00:37.3]} 33... f2 {[%clk 0:00:16.2]} 34. Rf3 {[%clk 0:00:36.9]}
34... f1=Q+ {[%clk 0:00:16.4]} 35. Rxf1 {[%clk 0:00:37.8]} 35... Bxf1 {[%clk
0:00:17.2]} 36. Kb2 {[%clk 0:00:38.7]} 36... e4 {[%clk 0:00:17.9]} 37. Kc3
{[%clk 0:00:38.1]} 37... e3 {[%clk 0:00:18.8]} 38. b4 {[%clk 0:00:37.1]} 38...
e2 {[%clk 0:00:19.7]} 39. Kd2 {[%clk 0:00:37.5]} 39... Ke7 {[%clk 0:00:20.3]}
40. a3 {[%clk 0:00:37.4]} 40... Kd6 {[%clk 0:00:21.2]} 41. Ke1 {[%clk
0:00:37.3]} 41... Kd5 {[%clk 0:00:22.1]} 42. h4 {[%clk 0:00:37.8]} 42... Kc4
{[%clk 0:00:23]} 43. Kf2 {[%clk 0:00:38.2]} 43... Kb3 {[%clk 0:00:23.9]} 44. b5
{[%clk 0:00:38.3]} 44... Kxa3 {[%clk 0:00:24.2]} 45. Ke1 {[%clk 0:00:38.5]}
45... Ka4 {[%clk 0:00:25.1]} 0-1

[Event "*** Titled Tuesday Blitz"]
[Site "Chess.com"]
[Date "2020.05.05"]
[Round "6"]
[White "Philosopherrr"]
[Black "kleinebeer98"]
[Result "1-0"]
[WhiteElo "2503"]
[BlackElo "2672"]
[TimeControl "180+1"]
[EndTime "11:07:18 PDT"]
[Termination "Philosopherrr won by resignation"]

1. e4 {[%clk 0:03:00.8]} 1... e5 {[%clk 0:02:58.3]} 2. Nf3 {[%clk 0:02:59.9]}
2... Nc6 {[%clk 0:02:58.7]} 3. Bb5 {[%clk 0:02:58.3]} 3... f5 {[%clk 0:02:59]}
4. d3 {[%clk 0:02:57.1]} 4... fxe4 {[%clk 0:02:58.7]} 5. dxe4 {[%clk 0:02:51.4]}
5... Nf6 {[%clk 0:02:59.1]} 6. O-O {[%clk 0:02:42.9]} 6... d6 {[%clk 0:02:57.9]}
7. Qd3 {[%clk 0:02:39.9]} 7... Be7 {[%clk 0:02:58]} 8. Nc3 {[%clk 0:02:34.5]}
8... O-O {[%clk 0:02:58]} 9. a3 {[%clk 0:02:23.2]} 9... Qe8 {[%clk 0:02:51.3]}
10. Nd5 {[%clk 0:02:19.2]} 10... Bd8 {[%clk 0:02:51.4]} 11. Bg5 {[%clk
0:02:16.5]} 11... a6 {[%clk 0:02:41.6]} 12. Bxf6 {[%clk 0:02:13.7]} 12... gxf6
{[%clk 0:02:37.8]} 13. Ba4 {[%clk 0:02:13.7]} 13... Kh8 {[%clk 0:02:35.4]} 14.
Nh4 {[%clk 0:02:13.3]} 14... Rg8 {[%clk 0:02:32.2]} 15. c3 {[%clk 0:02:09.5]}
15... Qh5 {[%clk 0:02:29.3]} 16. Nf5 {[%clk 0:02:09.5]} 16... Be6 {[%clk
0:02:22.8]} 17. Ng3 {[%clk 0:02:02.7]} 17... Qg6 {[%clk 0:02:20.8]} 18. Bc2
{[%clk 0:01:59.1]} 18... Ne7 {[%clk 0:02:07.2]} 19. c4 {[%clk 0:01:55.8]} 19...
Nxd5 {[%clk 0:02:01.5]} 20. cxd5 {[%clk 0:01:55.7]} 20... Bd7 {[%clk 0:02:00.5]}
21. Qe2 {[%clk 0:01:44.2]} 21... Bg4 {[%clk 0:01:58.8]} 22. f3 {[%clk
0:01:43.9]} 22... Bd7 {[%clk 0:01:58]} 23. f4 {[%clk 0:01:41.6]} 23... Bg4
{[%clk 0:01:54.9]} 24. Qf2 {[%clk 0:01:40.9]} 24... c6 {[%clk 0:01:51.6]} 25. f5
{[%clk 0:01:38.2]} 25... Qg5 {[%clk 0:01:49.8]} 26. Bb3 {[%clk 0:01:37.8]} 26...
Rg7 {[%clk 0:01:45.3]} 27. Kh1 {[%clk 0:01:34.8]} 27... h5 {[%clk 0:01:44.9]}
28. Rfe1 {[%clk 0:01:29.7]} 28... h4 {[%clk 0:01:43.4]} 29. Nf1 {[%clk
0:01:29.6]} 29... Bb6 {[%clk 0:01:42.6]} 30. Qd2 {[%clk 0:01:22.7]} 30... h3
{[%clk 0:01:42.7]} 31. Qxg5 {[%clk 0:01:20.3]} 31... Rxg5 {[%clk 0:01:37.6]} 32.
Ng3 {[%clk 0:01:20.2]} 32... Rag8 {[%clk 0:01:35]} 33. dxc6 {[%clk 0:01:19]}
33... bxc6 {[%clk 0:01:34.7]} 34. Bxg8 {[%clk 0:01:18.9]} 34... Rxg8 {[%clk
0:01:29.2]} 35. Rac1 {[%clk 0:01:18.3]} 35... Rc8 {[%clk 0:01:27.5]} 36. b4
{[%clk 0:01:13.5]} 36... Bd4 {[%clk 0:01:25.8]} 37. Rc2 {[%clk 0:01:09.2]} 37...
Kg7 {[%clk 0:01:23.2]} 38. Ne2 {[%clk 0:01:08]} 38... Bf2 {[%clk 0:01:20.8]} 39.
Rf1 {[%clk 0:01:06.2]} 39... Bb6 {[%clk 0:01:19.2]} 40. Rfc1 {[%clk 0:01:05.8]}
40... Be3 {[%clk 0:01:14.2]} 41. Rd1 {[%clk 0:01:05.8]} 41... d5 {[%clk
0:01:10.6]} 42. exd5 {[%clk 0:01:00.2]} 42... Bxf5 {[%clk 0:01:10.6]} 43. Rc3
{[%clk 0:00:55.8]} 43... Bb6 {[%clk 0:00:54.3]} 44. Ng3 {[%clk 0:00:55.6]} 44...
Bg4 {[%clk 0:00:51.4]} 45. Rdc1 {[%clk 0:00:53.6]} 45... Rd8 {[%clk 0:00:44.9]}
46. Rxc6 {[%clk 0:00:52.5]} 46... Be3 {[%clk 0:00:43]} 47. R1c4 {[%clk
0:00:46.5]} 47... f5 {[%clk 0:00:39.7]} 48. Rxg4+ {[%clk 0:00:46.3]} 48... fxg4
{[%clk 0:00:39.6]} 49. Nf5+ {[%clk 0:00:46.8]} 1-0

[Event "*** Titled Tuesday Blitz"]
[Site "Chess.com"]
[Date "2020.05.05"]
[Round "6"]
[White "reniite"]
[Black "Belka1989"]
[Result "1/2-1/2"]
[WhiteElo "1946"]
[BlackElo "2106"]
[TimeControl "180+1"]
[EndTime "11:07:18 PDT"]
[Termination "Game drawn by repetition"]

1. e4 {[%clk 0:03:00.9]} 1... c6 {[%clk 0:02:54.8]} 2. d4 {[%clk 0:02:59.9]}
2... d5 {[%clk 0:02:55.7]} 3. exd5 {[%clk 0:02:59.4]} 3... cxd5 {[%clk
0:02:56.6]} 4. c4 {[%clk 0:02:58.2]} 4... Nf6 {[%clk 0:02:56.2]} 5. Nf3 {[%clk
0:02:57.3]} 5... e6 {[%clk 0:02:55.7]} 6. Nc3 {[%clk 0:02:56.7]} 6... Bb4 {[%clk
0:02:54.7]} 7. Be2 {[%clk 0:02:49.7]} 7... O-O {[%clk 0:02:53.4]} 8. O-O {[%clk
0:02:49.5]} 8... Bxc3 {[%clk 0:02:50.1]} 9. bxc3 {[%clk 0:02:49.5]} 9... Ne4
{[%clk 0:02:51]} 10. Qc2 {[%clk 0:02:48.7]} 10... Qa5 {[%clk 0:02:49.3]} 11. Bb2
{[%clk 0:02:46.6]} 11... Nc6 {[%clk 0:02:47.9]} 12. Bd3 {[%clk 0:02:46.3]} 12...
Nf6 {[%clk 0:02:46.8]} 13. c5 {[%clk 0:02:42.4]} 13... b6 {[%clk 0:02:44.5]} 14.
cxb6 {[%clk 0:02:40.1]} 14... Qxb6 {[%clk 0:02:45.4]} 15. c4 {[%clk 0:02:38]}
15... dxc4 {[%clk 0:02:44.8]} 16. Bxc4 {[%clk 0:02:36.8]} 16... Nb4 {[%clk
0:02:43.2]} 17. Qb3 {[%clk 0:02:34.5]} 17... Nbd5 {[%clk 0:02:41.4]} 18. Ba3
{[%clk 0:02:02.4]} 18... Rd8 {[%clk 0:02:38.7]} 19. Bc5 {[%clk 0:01:57.6]} 19...
Qxb3 {[%clk 0:02:37.5]} 20. axb3 {[%clk 0:01:51.4]} 20... a6 {[%clk 0:02:37.5]}
21. Ne5 {[%clk 0:01:47.4]} 21... Bb7 {[%clk 0:02:36.1]} 22. f4 {[%clk
0:01:37.6]} 22... Ne3 {[%clk 0:02:31.6]} 23. Rf2 {[%clk 0:01:27.7]} 23... Nfg4
{[%clk 0:02:29]} 24. Nxg4 {[%clk 0:01:08.2]} 24... Nxg4 {[%clk 0:02:29.9]} 25.
Rfa2 {[%clk 0:01:08.4]} 25... Ne3 {[%clk 0:02:26]} 26. Bxa6 {[%clk 0:00:52.4]}
26... Bd5 {[%clk 0:02:21.7]} 27. Bc4 {[%clk 0:00:24.1]} 27... Rxa2 {[%clk
0:02:13.3]} 28. Rxa2 {[%clk 0:00:25]} 28... Nxc4 {[%clk 0:02:13.6]} 29. bxc4
{[%clk 0:00:25.5]} 29... Bxc4 {[%clk 0:02:14.5]} 30. Rc2 {[%clk 0:00:25.4]}
30... Bd5 {[%clk 0:02:12.8]} 31. g3 {[%clk 0:00:25.3]} 31... Rc8 {[%clk
0:02:10.2]} 32. Kf2 {[%clk 0:00:24.5]} 32... f6 {[%clk 0:02:10.2]} 33. Rb2
{[%clk 0:00:24.2]} 33... Kf7 {[%clk 0:02:09.1]} 34. Ke3 {[%clk 0:00:23.9]} 34...
Ke8 {[%clk 0:02:07.9]} 35. Rb6 {[%clk 0:00:23.9]} 35... Kd7 {[%clk 0:02:07.2]}
36. Ra6 {[%clk 0:00:23.4]} 36... Rc7 {[%clk 0:02:05.5]} 37. Ra7 {[%clk 0:00:23]}
37... Rxa7 {[%clk 0:02:04.3]} 38. Bxa7 {[%clk 0:00:23.9]} 38... Kc6 {[%clk
0:02:04.9]} 39. Bb8 {[%clk 0:00:22.8]} 39... Kb5 {[%clk 0:02:04.9]} 40. Bc7
{[%clk 0:00:22.8]} 40... Kc4 {[%clk 0:02:05]} 41. Bd8 {[%clk 0:00:22.9]} 41...
Kb5 {[%clk 0:02:01.5]} 42. Be7 {[%clk 0:00:21.7]} 42... Kc6 {[%clk 0:02:01.5]}
43. Bf8 {[%clk 0:00:21.8]} 43... g5 {[%clk 0:02:00.5]} 44. fxg5 {[%clk
0:00:21.8]} 44... fxg5 {[%clk 0:02:01.2]} 45. g4 {[%clk 0:00:20.4]} 45... Kd7
{[%clk 0:02:00]} 46. Bh6 {[%clk 0:00:20.5]} 46... Ke7 {[%clk 0:01:55.1]} 47.
Bxg5+ {[%clk 0:00:20.9]} 47... Kf7 {[%clk 0:01:55.6]} 48. h4 {[%clk 0:00:21.2]}
48... Kg6 {[%clk 0:01:55.5]} 49. Kf4 {[%clk 0:00:21.5]} 49... h6 {[%clk
0:01:54.2]} 50. Bd8 {[%clk 0:00:21.1]} 50... Kf7 {[%clk 0:01:53.9]} 51. Ke5
{[%clk 0:00:21.2]} 51... Ke8 {[%clk 0:01:52.5]} 52. g5 {[%clk 0:00:21.6]} 52...
hxg5 {[%clk 0:01:32.5]} 53. Bxg5 {[%clk 0:00:21.2]} 53... Kf7 {[%clk 0:01:32.4]}
54. Kf4 {[%clk 0:00:19.4]} 54... Kg6 {[%clk 0:01:32.5]} 55. Kg4 {[%clk
0:00:19.9]} 55... Be4 {[%clk 0:01:30.9]} 56. Bd8 {[%clk 0:00:19.5]} 56... Bf5+
{[%clk 0:01:30.7]} 57. Kg3 {[%clk 0:00:18.4]} 57... Kh5 {[%clk 0:01:30.9]} 58.
Bg5 {[%clk 0:00:18.6]} 58... Be4 {[%clk 0:01:30.7]} 59. Kf4 {[%clk 0:00:18.5]}
59... Bd5 {[%clk 0:01:30.5]} 60. Ke5 {[%clk 0:00:19.4]} 60... Ba2 {[%clk
0:01:29.4]} 61. Kf6 {[%clk 0:00:19.6]} 61... Bd5 {[%clk 0:01:26.4]} 62. Ke5
{[%clk 0:00:20.5]} 62... Ba2 {[%clk 0:01:26.1]} 63. Kf6 {[%clk 0:00:21.4]} 63...
Bd5 {[%clk 0:01:26.4]} 64. Ke5 {[%clk 0:00:22.3]} 1/2-1/2

[Event "*** Titled Tuesday Blitz"]
[Site "Chess.com"]
[Date "2020.05.05"]
[Round "6"]
[White "Quattroporte300"]
[Black "orkan85"]
[Result "0-1"]
[WhiteElo "2318"]
[BlackElo "2477"]
[TimeControl "180+1"]
[EndTime "11:07:21 PDT"]
[Termination "orkan85 won by resignation"]

1. e4 {[%clk 0:03:00.9]} 1... c5 {[%clk 0:02:59.2]} 2. Nf3 {[%clk 0:02:59.1]}
2... e6 {[%clk 0:02:59]} 3. d4 {[%clk 0:02:59]} 3... cxd4 {[%clk 0:02:59.9]} 4.
Nxd4 {[%clk 0:02:59.3]} 4... a6 {[%clk 0:03:00.6]} 5. c4 {[%clk 0:02:58.8]} 5...
Nf6 {[%clk 0:03:00]} 6. Nc3 {[%clk 0:02:58.9]} 6... Qc7 {[%clk 0:03:00.6]} 7. a3
{[%clk 0:02:53.1]} 7... b6 {[%clk 0:03:00.6]} 8. Be3 {[%clk 0:02:52.1]} 8... Bb7
{[%clk 0:03:01]} 9. Bd3 {[%clk 0:02:52.4]} 9... d6 {[%clk 0:02:56.6]} 10. Rc1
{[%clk 0:02:51.8]} 10... Nbd7 {[%clk 0:02:56.9]} 11. f3 {[%clk 0:02:44.8]} 11...
Be7 {[%clk 0:02:49.6]} 12. O-O {[%clk 0:02:44.1]} 12... O-O {[%clk 0:02:48.8]}
13. b4 {[%clk 0:02:42.7]} 13... Rac8 {[%clk 0:02:48.4]} 14. Kh1 {[%clk
0:02:37.4]} 14... Qb8 {[%clk 0:02:46.7]} 15. Be2 {[%clk 0:02:21.9]} 15... Bd8
{[%clk 0:02:45.3]} 16. Qd2 {[%clk 0:02:16.6]} 16... Bc7 {[%clk 0:02:43.9]} 17.
Bg1 {[%clk 0:01:53.7]} 17... d5 {[%clk 0:02:24.9]} 18. cxd5 {[%clk 0:01:49.2]}
18... Bf4 {[%clk 0:02:23.7]} 19. Be3 {[%clk 0:01:37]} 19... Bxh2 {[%clk
0:02:02.6]} 20. f4 {[%clk 0:01:18.6]} 20... Bg3 {[%clk 0:01:22.6]} 21. dxe6
{[%clk 0:00:59.3]} 21... Rxc3 {[%clk 0:00:53.7]} 22. exf7+ {[%clk 0:00:50.2]}
22... Rxf7 {[%clk 0:00:51.3]} 23. Qxc3 {[%clk 0:00:49.9]} 23... Nxe4 {[%clk
0:00:46.3]} 24. Qc7 {[%clk 0:00:47]} 24... Qa8 {[%clk 0:00:35.1]} 25. Bc4 {[%clk
0:00:44.1]} 25... Bd5 {[%clk 0:00:28]} 26. Bxd5 {[%clk 0:00:39.1]} 26... Qxd5
{[%clk 0:00:28.9]} 27. Qc8+ {[%clk 0:00:26.6]} 27... Rf8 {[%clk 0:00:28.4]} 28.
Qc4 {[%clk 0:00:25.6]} 28... Ndf6 {[%clk 0:00:20.5]} 29. Qxd5+ {[%clk
0:00:25.5]} 29... Nxd5 {[%clk 0:00:21.4]} 30. Bg1 {[%clk 0:00:24.2]} 30... Rf6
{[%clk 0:00:18.7]} 31. Rc8+ {[%clk 0:00:23.2]} 31... Kf7 {[%clk 0:00:18.4]} 32.
f5 {[%clk 0:00:23.8]} 32... Rh6+ {[%clk 0:00:18]} 33. Bh2 {[%clk 0:00:23.6]}
33... Bxh2 {[%clk 0:00:17.7]} 0-1

[Event "*** Titled Tuesday Blitz"]
[Site "Chess.com"]
[Date "2020.05.05"]
[Round "6"]
[White "Tayson_7"]
[Black "SGchess01"]
[Result "0-1"]
[WhiteElo "2632"]
[BlackElo "2805"]
[TimeControl "180+1"]
[EndTime "11:07:22 PDT"]
[Termination "SGchess01 won by resignation"]

1. e4 {[%clk 0:03:00.9]} 1... Nf6 {[%clk 0:02:59.9]} 2. e5 {[%clk 0:02:57.4]}
2... Nd5 {[%clk 0:03:00.1]} 3. Nf3 {[%clk 0:02:57.2]} 3... d6 {[%clk 0:02:56.6]}
4. d4 {[%clk 0:02:55.7]} 4... Nb6 {[%clk 0:02:57.1]} 5. a4 {[%clk 0:02:53.4]}
5... a5 {[%clk 0:02:56.8]} 6. Nc3 {[%clk 0:02:46.3]} 6... g6 {[%clk 0:02:47.5]}
7. exd6 {[%clk 0:02:43.6]} 7... cxd6 {[%clk 0:02:47]} 8. Bb5+ {[%clk 0:02:41.4]}
8... Bd7 {[%clk 0:02:45.2]} 9. O-O {[%clk 0:02:41.4]} 9... Bg7 {[%clk
0:02:45.5]} 10. Re1 {[%clk 0:02:41.6]} 10... O-O {[%clk 0:02:45.5]} 11. Bg5
{[%clk 0:02:41.9]} 11... Re8 {[%clk 0:02:42.8]} 12. Qd2 {[%clk 0:02:31.4]} 12...
Nc6 {[%clk 0:02:42.1]} 13. Bh6 {[%clk 0:02:30.3]} 13... Bh8 {[%clk 0:02:26.1]}
14. h3 {[%clk 0:02:27.5]} 14... Rc8 {[%clk 0:02:25.5]} 15. Ne4 {[%clk
0:02:24.7]} 15... Nb4 {[%clk 0:02:18.5]} 16. c3 {[%clk 0:02:24.7]} 16... N4d5
{[%clk 0:02:11.1]} 17. Bf1 {[%clk 0:02:19.4]} 17... Nxa4 {[%clk 0:02:03.5]} 18.
c4 {[%clk 0:02:15.8]} 18... Nf6 {[%clk 0:02:02.8]} 19. Nxf6+ {[%clk 0:02:13.6]}
19... Bxf6 {[%clk 0:02:02.6]} 20. b3 {[%clk 0:02:14.2]} 20... Nb6 {[%clk
0:02:00.6]} 21. Rxa5 {[%clk 0:02:14]} 21... Ra8 {[%clk 0:01:54.2]} 22. Rea1
{[%clk 0:02:13.5]} 22... Rxa5 {[%clk 0:01:53.9]} 23. Rxa5 {[%clk 0:02:14.4]}
23... Qc7 {[%clk 0:01:51.7]} 24. d5 {[%clk 0:02:07.4]} 24... Ra8 {[%clk
0:01:46.3]} 25. Be3 {[%clk 0:02:03.6]} 25... Rb8 {[%clk 0:01:23]} 26. g3 {[%clk
0:02:02.1]} 26... Nc8 {[%clk 0:01:19.6]} 27. Nd4 {[%clk 0:01:54.5]} 27... b6
{[%clk 0:01:13.9]} 28. Ra2 {[%clk 0:01:49.7]} 28... Qb7 {[%clk 0:01:11.5]} 29.
h4 {[%clk 0:01:44.5]} 29... Ra8 {[%clk 0:01:10.8]} 30. Rxa8 {[%clk 0:01:32.3]}
30... Qxa8 {[%clk 0:01:11.7]} 31. Bg5 {[%clk 0:01:32.7]} 31... Bxg5 {[%clk
0:01:05]} 32. hxg5 {[%clk 0:01:33.6]} 32... Qa5 {[%clk 0:00:57]} 33. Qxa5 {[%clk
0:01:20.7]} 33... bxa5 {[%clk 0:00:56.8]} 34. Nc6 {[%clk 0:01:21.2]} 34... Bxc6
{[%clk 0:00:43.1]} 35. dxc6 {[%clk 0:01:22.1]} 35... Kf8 {[%clk 0:00:43.8]} 36.
c5 {[%clk 0:00:42.2]} 36... Ke8 {[%clk 0:00:43.2]} 37. Ba6 {[%clk 0:00:36.4]}
37... Kd8 {[%clk 0:00:42.8]} 38. Kg2 {[%clk 0:00:30.1]} 38... dxc5 {[%clk
0:00:41.1]} 39. Kf3 {[%clk 0:00:30.4]} 39... Nd6 {[%clk 0:00:41.1]} 40. Kf4
{[%clk 0:00:29.6]} 40... Kc7 {[%clk 0:00:41.1]} 41. Ke5 {[%clk 0:00:30.2]} 41...
Kxc6 {[%clk 0:00:41.6]} 42. Be2 {[%clk 0:00:30.8]} 42... c4 {[%clk 0:00:37.6]}
43. bxc4 {[%clk 0:00:28.2]} 43... Kc5 {[%clk 0:00:38.1]} 0-1

[Event "*** Titled Tuesday Blitz"]
[Site "Chess.com"]
[Date "2020.05.05"]
[Round "6"]
[White "Margarita2907"]
[Black "MichailovM"]
[Result "0-1"]
[WhiteElo "1992"]
[BlackElo "2372"]
[TimeControl "180+1"]
[EndTime "11:07:23 PDT"]
[Termination "MichailovM won on time"]

1. e4 {[%clk 0:03:00.9]} 1... c5 {[%clk 0:02:59.1]} 2. Nf3 {[%clk 0:02:59.2]}
2... d6 {[%clk 0:02:59.6]} 3. d4 {[%clk 0:02:56.8]} 3... cxd4 {[%clk 0:03:00.5]}
4. Nxd4 {[%clk 0:02:53.4]} 4... Nf6 {[%clk 0:03:00.6]} 5. Nc3 {[%clk 0:02:51.1]}
5... g6 {[%clk 0:03:01.1]} 6. Be3 {[%clk 0:02:42.3]} 6... Bg7 {[%clk 0:03:01.5]}
7. f3 {[%clk 0:02:40.5]} 7... O-O {[%clk 0:03:02]} 8. Qd2 {[%clk 0:02:38.2]}
8... Nc6 {[%clk 0:03:02.3]} 9. Bc4 {[%clk 0:02:36.3]} 9... Bd7 {[%clk
0:03:02.9]} 10. O-O-O {[%clk 0:02:34]} 10... Rc8 {[%clk 0:03:03.6]} 11. Bb3
{[%clk 0:02:31.6]} 11... Ne5 {[%clk 0:03:04.1]} 12. h4 {[%clk 0:02:24.4]} 12...
h5 {[%clk 0:03:03.1]} 13. Kb1 {[%clk 0:02:22]} 13... Nc4 {[%clk 0:03:01.3]} 14.
Bxc4 {[%clk 0:02:20.8]} 14... Rxc4 {[%clk 0:03:02.2]} 15. g4 {[%clk 0:02:19.8]}
15... hxg4 {[%clk 0:02:52]} 16. h5 {[%clk 0:02:18.6]} 16... Nxh5 {[%clk
0:02:51]} 17. Rxh5 {[%clk 0:02:04.1]} 17... gxh5 {[%clk 0:02:49.2]} 18. Bh6
{[%clk 0:01:59.1]} 18... e6 {[%clk 0:02:41.5]} 19. Bxg7 {[%clk 0:01:42.2]} 19...
Kxg7 {[%clk 0:02:41.3]} 20. Rh1 {[%clk 0:01:40.2]} 20... Qf6 {[%clk 0:02:31.2]}
21. Nde2 {[%clk 0:01:31]} 21... Rh8 {[%clk 0:02:17.1]} 22. fxg4 {[%clk
0:01:20.2]} 22... hxg4 {[%clk 0:02:07.1]} 23. Rg1 {[%clk 0:01:19]} 23... Rh4
{[%clk 0:02:01.5]} 24. Nf4 {[%clk 0:01:09.1]} 24... Rc5 {[%clk 0:01:23.7]} 25.
Nce2 {[%clk 0:00:54.5]} 25... Bc6 {[%clk 0:01:13.8]} 26. Ng3 {[%clk 0:00:52]}
26... Rb5 {[%clk 0:01:05.4]} 27. c4 {[%clk 0:00:33.6]} 27... Re5 {[%clk
0:01:05]} 28. Ng2 {[%clk 0:00:18.3]} 28... Rh3 {[%clk 0:01:01.9]} 29. Ne3 {[%clk
0:00:13.2]} 29... Qf3 {[%clk 0:00:55.4]} 30. Ne2 {[%clk 0:00:12.1]} 30... Bxe4+
{[%clk 0:00:53.7]} 31. Ka1 {[%clk 0:00:10.6]} 31... Qxe3 {[%clk 0:00:54.3]} 32.
Rxg4+ {[%clk 0:00:09.7]} 32... Bg6 {[%clk 0:00:52.1]} 0-1

[Event "*** Titled Tuesday Blitz"]
[Site "Chess.com"]
[Date "2020.05.05"]
[Round "6"]
[White "Cocaino74"]
[Black "CSB7"]
[Result "0-1"]
[WhiteElo "2342"]
[BlackElo "2536"]
[TimeControl "180+1"]
[EndTime "11:07:24 PDT"]
[Termination "CSB7 won on time"]

1. e4 {[%clk 0:02:59.3]} 1... c5 {[%clk 0:02:58.5]} 2. Ne2 {[%clk 0:02:58.5]}
2... Nc6 {[%clk 0:02:46.7]} 3. Nbc3 {[%clk 0:02:48.4]} 3... e6 {[%clk
0:02:45.4]} 4. g3 {[%clk 0:02:47.5]} 4... d5 {[%clk 0:02:45.3]} 5. exd5 {[%clk
0:02:44.5]} 5... exd5 {[%clk 0:02:46.2]} 6. d4 {[%clk 0:02:39.5]} 6... Nf6
{[%clk 0:02:45.6]} 7. Bg2 {[%clk 0:02:38.5]} 7... cxd4 {[%clk 0:02:45]} 8. Nxd4
{[%clk 0:02:38.4]} 8... Bg4 {[%clk 0:02:45.3]} 9. Nxc6 {[%clk 0:02:21.3]} 9...
bxc6 {[%clk 0:02:40.1]} 10. Qd3 {[%clk 0:02:16.6]} 10... Be7 {[%clk 0:02:37.5]}
11. Be3 {[%clk 0:01:48.6]} 11... O-O {[%clk 0:02:36.6]} 12. O-O {[%clk
0:01:45.1]} 12... Bh5 {[%clk 0:02:36.1]} 13. f4 {[%clk 0:01:40.7]} 13... Ng4
{[%clk 0:02:29]} 14. Bd4 {[%clk 0:01:28.3]} 14... c5 {[%clk 0:01:58.3]} 15. Bf2
{[%clk 0:01:24.8]} 15... d4 {[%clk 0:01:57.7]} 16. Bxa8 {[%clk 0:01:07.1]} 16...
Qxa8 {[%clk 0:01:58.6]} 17. Qe4 {[%clk 0:01:03.8]} 17... dxc3 {[%clk 0:01:07.5]}
18. Qxe7 {[%clk 0:01:03.6]} 18... cxb2 {[%clk 0:01:07.9]} 19. Rae1 {[%clk
0:01:02.4]} 19... Nxf2 {[%clk 0:00:57.9]} 20. Rxf2 {[%clk 0:01:03.3]} 20... Rb8
{[%clk 0:00:42.3]} 21. Rb1 {[%clk 0:00:25.8]} 21... Qd5 {[%clk 0:00:39.4]} 22.
Qe5 {[%clk 0:00:24.8]} 22... Qxe5 {[%clk 0:00:38.9]} 23. fxe5 {[%clk 0:00:25.7]}
23... Bg6 {[%clk 0:00:38.2]} 24. Rd2 {[%clk 0:00:12.6]} 24... Kf8 {[%clk
0:00:35.2]} 25. Kf2 {[%clk 0:00:06.8]} 25... c4 {[%clk 0:00:35]} 26. Ke3 {[%clk
0:00:06.6]} 26... c3 {[%clk 0:00:33.7]} 27. Rf2 {[%clk 0:00:06.6]} 27... Rd8
{[%clk 0:00:22.3]} 28. Rf4 {[%clk 0:00:02.3]} 28... Bxc2 {[%clk 0:00:18.4]} 29.
Rbf1 {[%clk 0:00:02.1]} 29... Bg6 {[%clk 0:00:16.5]} 0-1